bitfinex-derivatives/quotes_SOLF0:USTF0_20241208
["timestamp","ask_amount","ask_price","bid_price","bid_amount"]
[1733635776074,6.5366465,237.72,237.66,6.5366465]
[1733635776872,2.1018,237.71,237.66,8.6388465]
[1733635778573,2.1018,237.71,237.66,2.1022]
[1733635778977,6.5366465,237.72,237.64,2.1023]
[1733635778978,2.102,237.69,237.64,2.1023]
[1733635779176,6.5366465,237.68,237.59,6.5366465]
[1733635779575,2.1024,237.65,237.6,2.1027]
[1733635779771,2.6346,237.73,237.57,6.5366465]
[1733635779772,1.94,237.64,237.57,6.5366465]
[1733635779976,1.94,237.63,237.59,6.5366465]
[1733635780283,1.94,237.64,237.59,6.5366465]
[1733635781382,1.94,237.64,237.6,2.1027]
[1733635781679,1.94,237.64,237.59,6.5366465]
[1733635782581,1.94,237.64,237.61,2.1027]
[1733635783383,2.6346,237.73,237.63,6.5366465]
[1733635783583,6.5366465,237.71,237.63,6.5366465]
[1733635783785,2.102,237.69,237.63,6.5366465]
[1733635784484,6.5366465,237.71,237.65,2.1023]
[1733635784680,8.6385465,237.71,237.63,6.5366465]
[1733635784881,2.1019,237.71,237.66,6.5366465]
[1733635785085,1.94,237.7,237.66,6.5366465]
[1733635786382,2.1015,237.75,237.66,6.5366465]
[1733635786687,2.1015,237.75,237.68,6.5366465]
[1733635786982,1.94,237.74,237.71,2.1018]
[1733635787882,2.1015,237.75,237.71,2.1018]
[1733635788082,1.94,237.75,237.72,2.1017]
[1733635789287,1.94,237.75,237.7,6.5366465]
[1733635790289,1.94,237.75,237.73,2.1015]
[1733635791485,6.5366465,237.77,237.73,2.1015]
[1733635791486,8.4766465,237.77,237.73,2.1015]
[1733635793890,10.5779465,237.77,237.73,2.1015]
[1733635795486,2.1014,237.75,237.71,2.1017]
[1733635795687,6.5366465,237.75,237.65,1.94]
[1733635796091,2.1015,237.74,237.67,6.5366465]
[1733635796594,2.1015,237.74,237.65,1.94]
[1733635796889,2.1018,237.71,237.67,2.1021]
[1733635797090,6.5366465,237.73,237.65,6.5366465]
[1733635797693,2.1017,237.72,237.67,6.5366465]
[1733635798292,2.1017,237.72,237.68,2.102]
[1733635799594,6.5366465,237.75,237.67,6.5366465]
[1733635799792,2.1018,237.71,237.67,6.5366465]
[1733635800193,6.5366465,237.71,237.61,1.2864]
[1733635800394,2.1022,237.67,237.62,2.1025]
[1733635800697,8.4766465,237.67,237.6,84.19359995]
[1733635800902,1.94,237.67,237.64,2.1024]
[1733635801891,1.94,237.67,237.63,2.1025]
[1733635802514,4.0422,237.67,237.63,2.1025]
[1733635802989,2.1023,237.65,237.61,2.1026]
[1733635804195,4.0422,237.67,237.61,2.1026]
[1733635804697,2.1023,237.65,237.61,2.1026]
[1733635805202,6.5366465,237.66,237.6,2.1027]
[1733635806595,2.1024,237.64,237.6,2.1027]
[1733635806993,6.5366465,237.66,237.59,6.5366465]
[1733635807297,4.0421,237.67,237.61,6.5366465]
[1733635808498,1.94,237.67,237.63,6.5366465]
[1733635809292,1.94,237.67,237.65,2.1023]
[1733635809998,1.94,237.67,237.63,6.5366465]
[1733635810200,2.1019,237.71,237.65,6.5366465]
[1733635810397,1.94,237.7,237.65,6.5366465]
[1733635810603,1.94,237.7,237.67,2.1021]
[1733635811195,1.94,237.7,237.69,2.102]
[1733635812003,1.92,237.75,237.69,6.5366465]
[1733635812501,1.92,237.75,237.71,2.1017]
[1733635813004,1.92,237.75,237.71,6.5366465]
[1733635813595,4.0214,237.75,237.71,2.1018]
[1733635814001,4.0214,237.75,237.72,2.1017]
[1733635814300,1.3558,237.81,237.71,6.5366465]
[1733635814502,4.0211,237.79,237.71,6.5366465]
[1733635814702,6.5366465,237.78,237.73,2.1016]
[1733635815504,2.1014,237.76,237.71,8.6383465]
[1733635815701,6.5366465,237.76,237.71,2.1017]
[1733635816602,2.1015,237.75,237.71,2.1017]
[1733635816812,1.92,237.74,237.71,2.1017]
[1733635817803,1.92,237.74,237.73,2.1016]
[1733635818803,1.92,237.74,237.64,1.92]
[1733635819000,4.0215,237.74,237.68,6.5366465]
[1733635819798,1.92,237.74,237.68,6.5366465]
[1733635820400,4.0216,237.74,237.7,2.1019]
[1733635820700,1.92,237.74,237.68,6.5366465]
[1733635821507,2.1016,237.73,237.69,2.1019]
[1733635822606,8.4566465,237.74,237.64,1.92]
[1733635822806,6.5366465,237.7,237.63,6.5366465]
[1733635823001,6.5366465,237.7,237.59,2.6026]
[1733635823002,2.1021,237.68,237.62,2.1025]
[1733635823303,2.1021,237.68,237.62,6.5366465]
[1733635823502,6.5366465,237.68,237.62,6.5366465]
[1733635823708,2.1022,237.67,237.63,2.1024]
[1733635823900,8.4566465,237.68,237.6,6.5366465]
[1733635824300,2.1022,237.66,237.62,2.1026]
[1733635824903,1.3558,237.81,237.59,2.6026]
[1733635824904,6.5366465,237.8,237.65,6.5366465]
[1733635825203,301.2560597,237.93,237.75,6.5366465]
[1733635825204,7.37734258,237.79,237.75,6.5366465]
[1733635825510,2.1008,237.82,237.76,2.1012]
[1733635825810,8.4566465,237.83,237.77,2.1012]
[1733635825811,7.3778921,237.81,237.77,2.1012]
[1733635826006,8.6373465,237.83,237.77,2.1012]
[1733635826209,7.37849392,237.82,237.77,2.1012]
[1733635826406,1.92,237.85,237.75,2.1014]
[1733635826407,16.01604042,237.81,237.75,2.1014]
[1733635826709,2.1009,237.81,237.75,2.1014]
[1733635827007,12.10840879,237.85,237.75,2.1014]
[1733635827216,7.37758952,237.84,237.75,2.1014]
[1733635827402,7.37758952,237.83,237.75,2.1014]
[1733635827709,7.37758952,237.82,237.73,2.1015]
[1733635827910,7.37758952,237.81,237.73,2.1015]
[1733635828211,4.0211,237.8,237.74,2.1015]
[1733635829406,2.1011,237.79,237.74,2.1015]
[1733635830907,4.021,237.8,237.75,2.1014]
[1733635831606,4.021,237.8,237.76,2.1013]
[1733635831813,2.1007,237.84,237.73,10.18840879]
[1733635832014,7.3740781,237.83,237.74,10.18840879]
[1733635832205,2.1008,237.83,237.79,2.1011]
[1733635832509,1.92,237.85,237.79,2.1011]
[1733635833613,2.1007,237.83,237.79,2.1011]
[1733635833813,2.1007,237.83,237.74,12.10840879]
[1733635834014,2.1007,237.83,237.78,2.1012]
[1733635835114,2.1007,237.83,237.74,12.10840879]
[1733635835115,2.1007,237.83,237.79,2.1011]
[1733635835511,2.1004,237.87,237.75,2.5455]
[1733635835707,7.36968928,237.86,237.82,2.1008]
[1733635836014,12.29022055,237.89,237.79,1.92]
[1733635836015,7.36968928,237.85,237.79,1.92]
[1733635836216,1.92,237.88,237.79,1.92]
[1733635836713,7.36736307,237.87,237.83,2.1006]
[1733635836917,4.0203,237.88,237.83,2.1006]
[1733635837117,7.36840666,237.87,237.83,2.1006]
[1733635837324,1.92,237.88,237.79,1.92]
[1733635837519,2.1005,237.85,237.81,2.1008]
[1733635839022,1.92,237.88,237.79,1.92]
[1733635839222,2.1005,237.86,237.82,2.1008]
[1733635839922,1.92,237.88,237.8,2.1009]
[1733635840417,7.35931158,237.87,237.8,2.1009]
[1733635840622,1.92,237.88,237.8,2.1009]
[1733635840824,7.35663225,237.87,237.8,2.1009]
[1733635841028,1.92,237.88,237.8,2.1009]
[1733635841219,2.1004,237.87,237.82,2.1008]
[1733635841424,1.9,237.9,237.82,2.1008]
[1733635841625,7.35451786,237.89,237.79,1.92]
[1733635841825,1.9,237.9,237.79,1.92]
[1733635841826,7.35451786,237.88,237.79,1.92]
[1733635842026,7.35451786,237.87,237.79,1.92]
[1733635842325,1.9,237.9,237.79,1.92]
[1733635842526,10.18840879,237.88,237.75,2.5455]
[1733635842721,7.35304116,237.87,237.75,2.5455]
[1733635843019,10.18840879,237.88,237.75,2.5455]
[1733635845627,3.9729,237.89,237.75,2.5455]
[1733635845830,7.3493135,237.88,237.75,2.5455]
[1733635846024,3.9729,237.89,237.75,2.5455]
[1733635846225,7.34937954,237.88,237.75,2.5455]
[1733635846532,3.9729,237.89,237.75,2.5455]
[1733635846938,7.34942996,237.88,237.75,2.5455]
[1733635847127,3.9729,237.89,237.75,2.5455]
[1733635847333,3.9729,237.89,237.76,10.18840879]
[1733635848525,6.51720916,237.87,237.8,6.51720916]
[1733635850536,8.43720916,237.87,237.8,6.51720916]
[1733635850942,43.76,238.01,237.84,6.51720916]
[1733635851141,6.51720916,237.92,237.84,6.51720916]
[1733635851539,6.51720916,237.9,237.82,6.51720916]
[1733635851737,1.92,237.93,237.82,6.51720916]
[1733635851938,6.51720916,237.91,237.82,6.51720916]
[1733635852835,6.51720916,237.89,237.82,6.51720916]
[1733635853039,6.51720916,237.87,237.78,1.92]
[1733635853231,8.43720916,237.87,237.78,1.92]
[1733635853432,8.43720916,237.87,237.78,6.51720916]
[1733635854542,1.92,237.87,237.78,6.51720916]
[1733635854736,6.51720916,237.86,237.78,6.51720916]
[1733635855631,2.1006,237.85,237.8,2.1009]
[1733635855943,1.92,237.87,237.8,8.61810916]
[1733635856144,8.43720916,237.87,237.8,8.61810916]
[1733635856442,2.1007,237.84,237.8,8.61810916]
[1733635856638,2.1007,237.84,237.82,6.51720916]
[1733635857240,2.1003,237.88,237.84,2.1006]
[1733635857440,1.92,237.94,237.86,6.51720916]
[1733635857639,1.92,237.94,237.88,6.51720916]
[1733635857834,6.51720916,237.95,237.8,1.92]
[1733635858037,8.43720916,237.95,237.87,6.51720916]
[1733635858840,6.51720916,237.93,237.87,6.51720916]
[1733635859041,6.51720916,237.91,237.83,8.43720916]
[1733635859244,6.51720916,237.91,237.83,6.51720916]
[1733635859636,1.92,237.9,237.83,6.51720916]
[1733635859837,6.51720916,237.89,237.83,6.51720916]
[1733635860146,2.1005,237.86,237.83,6.51720916]
[1733635860547,2.1005,237.85,237.82,2.1008]
[1733635861050,1.92,237.9,237.82,2.1008]
[1733635861845,2.1003,237.89,237.84,2.1006]
[1733635862052,10.18157469,237.97,237.81,10.18157469]
[1733635862250,9.26667779,237.96,237.81,10.18157469]
[1733635862450,2.1001,237.9,237.84,10.18157469]
[1733635863446,2.1001,237.9,237.86,2.1004]
[1733635863653,2.1002,237.89,237.84,10.18157469]
[1733635864353,1.92,237.94,237.85,2.1005]
[1733635864553,2.1001,237.91,237.84,10.18157469]
[1733635864852,1.92,237.94,237.84,10.18157469]
[1733635865048,2.1001,237.91,237.86,2.1004]
[1733635865353,2.5592,237.98,237.84,10.18157469]
[1733635865354,12.74077469,237.98,237.84,10.18157469]
[1733635865551,1.92,237.97,237.87,2.1003]
[1733635865742,2.5592,237.98,237.87,10.18157469]
[1733635865956,4.4792,237.98,237.87,10.18157469]
[1733635866453,2.0996,237.96,237.91,2.1]
[1733635866751,1.92,237.99,237.87,10.18157469]
[1733635867051,2.0999,237.93,237.88,2.1002]
[1733635867253,2.0999,237.93,237.87,10.18157469]
[1733635867548,2.1,237.91,237.86,12.28197469]
[1733635867853,2.1,237.91,237.86,10.18157469]
[1733635868753,2.1,237.91,237.87,2.1004]
[1733635869147,2.0999,237.93,237.88,2.1002]
[1733635869357,1.92,237.99,237.85,10.18157469]
[1733635869557,7.3492353,237.98,237.85,12.10157469]
[1733635869755,7.3492353,237.97,237.85,12.10157469]
[1733635869954,7.3492353,237.96,237.87,2.1004]
[1733635870153,1.92,237.99,237.85,12.10157469]
[1733635870352,7.35062755,237.98,237.85,12.10157469]
[1733635870557,2.0998,237.94,237.9,2.1]
[1733635871060,2.0996,237.96,237.91,2.0999]
[1733635871661,2.0993,238.0,237.95,2.0996]
[1733635871858,1.9,238.01,237.91,10.18157469]
[1733635872460,2.0995,237.98,237.93,2.0997]
[1733635872657,1.9,238.01,237.9,1.9]
[1733635872955,17.52991199,238.0,237.84,10.18157469]
[1733635873159,10.18157469,237.97,237.81,10.18157469]
[1733635873356,5.988,237.96,237.81,10.18157469]
[1733635873557,2.1002,237.9,237.86,2.1004]
[1733635873861,5.988,237.96,237.86,2.1004]
[1733635874862,5.988,237.96,237.84,10.18157469]
[1733635874863,2.1,237.91,237.87,2.1003]
[1733635875162,5.988,237.96,237.84,10.18157469]
[1733635875755,5.988,237.96,237.84,12.08157469]
[1733635876160,1.9,237.96,237.87,10.18157469]
[1733635876361,1.9,237.98,237.87,10.18157469]
[1733635876551,1.9,237.99,237.87,10.18157469]
[1733635877360,1.9,237.99,237.92,2.0999]
[1733635877361,2.0995,237.97,237.92,2.0999]
[1733635878153,1.9,237.99,237.91,2.1]
[1733635878355,1.9,237.99,237.85,14.10457469]
[1733635878557,2.0998,237.93,237.85,14.10457469]
[1733635878852,2.0998,237.93,237.85,16.00457469]
[1733635879056,10.18157469,237.98,237.85,3.923]
[1733635879260,14.10677469,237.98,237.88,2.1003]
[1733635879565,3.9252,237.98,237.85,3.923]
[1733635879761,3.9252,237.98,237.86,10.18157469]
[1733635880159,2.0997,237.94,237.86,10.18157469]
[1733635880559,2.0997,237.94,237.9,2.1001]
[1733635881657,1.9,237.97,237.9,2.1001]
[1733635882664,6.5126011,237.96,237.9,2.1001]
[1733635883564,2.0997,237.94,237.9,2.1001]
[1733635885069,2.0998,237.93,237.89,2.1002]
[1733635886466,1.9,237.97,237.91,6.5126011]
[1733635886776,375.2398776,238.55,237.93,6.5126011]
[1733635886777,6.5126011,238.01,237.93,6.5126011]
[1733635887067,9.25271977,238.0,237.94,2.0997]
[1733635887265,1.9,237.99,237.94,2.0997]
[1733635887464,4.1179,238.08,237.95,6.5126011]
[1733635887465,3.9993,238.0,237.95,6.5126011]
[1733635888366,3.9993,238.0,237.96,2.0995]
[1733635889273,3.9991,238.02,237.98,2.0994]
[1733635890073,1.9,238.02,237.98,2.0994]
[1733635890470,4.1179,238.08,238.0,2.0992]
[1733635890670,4.1179,238.08,237.99,6.5126011]
[1733635890671,2.0988,238.05,237.99,6.5126011]
[1733635891661,2.0988,238.05,238.01,2.0991]
[1733635891863,6.5126011,238.06,237.99,6.5126011]
[1733635892063,6.5126011,238.06,237.94,1.9]
[1733635892064,2.0985,238.08,238.03,6.5126011]
[1733635892267,2.0985,238.08,238.03,8.6115011]
[1733635892467,2.5788,238.14,238.03,8.6115011]
[1733635892672,2.0986,238.07,238.03,8.6115011]
[1733635893270,1.9,238.13,238.03,6.5126011]
[1733635893472,13.86391132,238.12,238.05,6.5126011]
[1733635893781,6.5126011,238.12,238.05,6.5126011]
[1733635894074,2.0984,238.1,238.05,8.6113011]
[1733635894772,6.5126011,238.12,238.05,8.6113011]
[1733635895076,2.0985,238.09,238.03,6.5126011]
[1733635896675,2.0985,238.09,238.04,2.0988]
[1733635897277,2.0985,238.09,238.05,6.5126011]
[1733635897478,2.0985,238.09,238.05,8.6114011]
[1733635897673,2.0983,238.11,238.07,6.5126011]
[1733635897872,1.9,238.12,238.07,6.5126011]
[1733635898777,1.9,238.12,238.08,2.0985]
[1733635898778,3.9982,238.12,238.08,2.0985]
[1733635899476,1.9,238.12,238.09,2.0984]
[1733635901579,1.9,238.12,238.07,6.5126011]
[1733635902392,2.0981,238.13,238.08,2.0985]
[1733635902892,1.9,238.14,238.08,2.0985]
[1733635903292,1.9,238.14,238.05,6.5126011]
[1733635903293,2.0983,238.1,238.05,6.5126011]
[1733635903888,2.0985,238.09,238.05,6.5126011]
[1733635905194,2.0985,238.09,238.05,8.6114011]
[1733635908694,6.5126011,238.15,238.07,6.5126011]
[1733635908901,9.23583586,238.14,238.07,6.5126011]
[1733635909195,2.6077,238.21,238.09,6.5126011]
[1733635909389,6.5126011,238.18,238.09,6.5126011]
[1733635909587,7.33593853,238.17,238.09,6.5126011]
[1733635909791,9.23593853,238.17,238.09,6.5126011]
[1733635909985,9.23593853,238.17,238.04,1.9]
[1733635909986,7.33593853,238.16,238.11,6.5126011]
[1733635910195,1.9,238.16,238.11,6.5126011]
[1733635910895,3.9856,238.28,238.13,6.5126011]
[1733635911093,6.5126011,238.22,238.15,6.5126011]
[1733635911396,9.23527474,238.21,238.15,6.5126011]
[1733635911592,1.9,238.21,238.15,6.5126011]
[1733635911796,6.5126011,238.22,238.15,6.5126011]
[1733635911995,6.5126011,238.22,238.16,2.0978]
[1733635911996,3.9974,238.21,238.16,2.0978]
[1733635912193,2.09845973,238.27,238.15,6.5126011]
[1733635912387,9.23337434,238.26,238.15,6.5126011]
[1733635912696,6.5126011,238.22,238.15,6.5126011]
[1733635912995,1.9,238.21,238.15,6.5126011]
[1733635913591,2.0975,238.2,238.15,8.6104011]
[1733635913996,2.0975,238.2,238.15,6.5126011]
[1733635914191,1.9,238.21,238.15,6.5126011]
[1733635914397,1.9,238.21,238.17,6.5126011]
[1733635914591,2.0974,238.22,238.17,6.5126011]
[1733635915597,2.0974,238.22,238.18,2.0976]
[1733635917695,3.9972,238.23,238.09,1.9]
[1733635917890,8.4126011,238.23,238.14,6.5126011]
[1733635918402,2.0976,238.18,238.14,8.6106011]
[1733635918698,2.0976,238.18,238.14,2.098]
[1733635918894,6.5126011,238.21,238.13,6.5126011]
[1733635919496,6.5126011,238.21,238.12,6.5126011]
[1733635919802,6.5126011,238.19,238.05,4.0966]
[1733635920002,2.0979,238.15,238.1,8.6109011]
[1733635920200,6.5126011,238.17,238.1,8.6109011]
[1733635920201,8.4126011,238.17,238.1,8.6109011]
[1733635920597,8.4126011,238.17,238.1,2.0983]
[1733635920798,8.4126011,238.17,238.1,8.6109011]
[1733635921606,2.0979,238.15,238.1,8.6109011]
[1733635922600,8.4126011,238.17,238.1,6.5126011]
[1733635922799,6.5126011,238.15,238.07,6.5126011]
[1733635923003,6.5126011,238.13,238.07,6.5126011]
[1733635923303,1.9,238.12,238.07,6.5126011]
[1733635924398,1.9,238.12,238.05,4.0966]
[1733635924601,1.9,238.12,238.04,6.5126011]
[1733635924797,6.5126011,238.11,237.96,3.995]
[1733635924997,6.5126011,238.11,238.02,8.6116011]
[1733635926398,2.0986,238.08,238.02,8.6116011]
[1733635926598,6.5126011,238.11,238.02,8.6116011]
[1733635927603,2.0986,238.08,238.02,8.6116011]
[1733635927805,6.5126011,238.11,238.02,8.6116011]
[1733635928002,6.5126011,238.09,238.02,6.5126011]
[1733635928802,6.5126011,238.09,238.02,2.099]
[1733635929003,1.9,238.1,238.04,6.5126011]
[1733635929900,3.9984,238.1,238.05,2.0987]
[1733635930101,4.194,238.26,238.04,6.5126011]
[1733635930304,2.0981,238.13,238.08,8.6111011]
[1733635930507,3.9981,238.13,238.08,8.6111011]
[1733635930708,2.0981,238.13,238.08,8.6111011]
[1733635931106,1.9,238.15,238.08,6.5126011]
[1733635931307,9.44194084,238.14,238.09,2.0984]
[1733635931508,2.098,238.14,238.09,2.0984]
[1733635931707,2.0981,238.13,238.09,2.0984]
[1733635932202,2.0981,238.13,238.1,6.5126011]
[1733635932910,1.9,238.15,238.12,6.5126011]
[1733635936003,1.9,238.15,238.02,1.9]
[1733635936207,1.9,238.15,238.13,6.5126011]
[1733635937018,1.9,238.17,238.13,6.5126011]
[1733635938310,3.9978,238.17,238.13,8.6107011]
[1733635938808,1.9,238.18,238.14,2.098]
[1733635939008,7.3589743,238.17,238.14,2.098]
[1733635939306,1.9,238.18,238.14,2.098]
[1733635939510,7.35922519,238.17,238.14,2.098]
[1733635939811,1.9,238.18,238.14,2.098]
[1733635940004,7.35941376,238.17,238.14,2.098]
[1733635940202,1.9,238.18,238.14,2.098]
[1733635940411,2.0972,238.24,238.14,2.098]
[1733635940613,9.25980409,238.23,238.14,2.098]
[1733635940822,6.5126011,238.2,238.14,2.098]
[1733635941008,9.45740409,238.19,238.14,2.098]
[1733635941212,7.35980409,238.18,238.14,2.098]
[1733635941414,7.35980409,238.17,238.14,2.098]
[1733635941608,7.35980409,238.16,238.14,2.098]
[1733635941803,3.9977,238.18,238.14,2.098]
[1733635942009,7.35771224,238.17,238.14,2.098]
[1733635942309,7.35771224,238.16,238.14,2.098]
[1733635942512,3.9977,238.18,238.14,2.098]
[1733635942712,7.35765036,238.17,238.14,2.098]
[1733635942907,7.35765036,238.16,238.14,2.098]
[1733635943113,3.9977,238.18,238.14,2.098]
[1733635943313,7.35966735,238.17,238.14,2.098]
[1733635943515,7.35966735,238.16,238.14,2.098]
[1733635943713,7.35966735,238.15,238.14,2.098]
[1733635943908,7.35966735,238.15,238.13,6.5126011]
[1733635944114,2.0977,238.17,238.13,8.6106011]
[1733635944416,7.36033909,238.16,238.13,8.6106011]
[1733635944614,7.36033909,238.15,238.13,8.6106011]
[1733635944808,2.0977,238.17,238.13,8.6106011]
[1733635944809,7.36033909,238.16,238.13,8.6106011]
[1733635945029,7.36062949,238.15,238.11,6.5126011]
[1733635945218,2.0978,238.16,238.09,2.0984]
[1733635945219,6.5126011,238.16,238.09,2.0984]
[1733635945523,6.5126011,238.14,238.07,6.5126011]
[1733635945820,9.26050863,238.13,238.07,6.5126011]
[1733635946017,7.36050863,238.12,238.09,6.5126011]
[1733635946222,1.9,238.18,238.11,6.5126011]
[1733635946422,7.35880475,238.17,238.11,6.5126011]
[1733635946618,7.35880475,238.16,238.11,6.5126011]
[1733635946820,7.35880475,238.15,238.13,2.098]
[1733635947011,7.35880475,238.14,238.13,2.098]
[1733635948517,7.35880475,238.14,238.11,8.6108011]
[1733635948723,2.098,238.15,238.11,8.6108011]
[1733635948916,6.5126011,238.17,238.09,6.5126011]
[1733635949222,2.0981,238.14,238.09,6.5126011]
[1733635950920,2.0981,238.14,238.11,6.5126011]
[1733635951316,1.9,238.18,238.09,6.5126011]
[1733635951317,8.4126011,238.18,238.09,6.5126011]
[1733635951521,2.098,238.14,238.09,6.5126011]
[1733635952625,2.098,238.14,238.11,2.0982]
[1733635955746,2.098,238.14,238.09,6.5126011]
[1733635955944,9.26166541,238.13,238.07,2.0985]
[1733635956145,7.36166541,238.12,238.07,2.0985]
[1733635956439,7.36166541,238.11,238.07,2.0985]
[1733635956645,7.36166541,238.1,238.07,2.0985]
[1733635956852,6.5126011,238.12,238.07,2.0985]
[1733635957041,7.36067045,238.11,238.07,2.0985]
[1733635957249,7.36067045,238.1,238.07,2.0985]
[1733635957451,6.5126011,238.12,238.07,2.0985]
[1733635957746,2.0983,238.1,238.07,2.0985]
[1733635958927,7.36077908,238.09,238.07,2.0985]
[1733635959135,2.0983,238.1,238.07,2.0985]
[1733635959330,7.36092323,238.09,238.07,2.0985]
[1733635959635,2.0983,238.1,238.07,2.0985]
[1733635960740,6.5126011,238.12,238.06,8.6112011]
[1733635960936,7.36104198,238.11,238.06,8.6112011]
[1733635961134,7.36104198,238.1,238.06,2.0986]
[1733635961331,7.36104198,238.09,238.06,2.0986]
[1733635964038,2.0984,238.1,238.06,2.0986]
[1733635965455,2.0984,238.1,238.07,6.5126011]
[1733635966940,2.0984,238.1,238.06,2.0986]
[1733635967128,2.0984,238.1,238.06,8.6112011]
[1733635970741,2.0984,238.1,238.07,2.0986]
[1733635971940,2.0983,238.11,238.07,2.0986]
[1733635973639,7.36566973,238.1,238.07,2.0986]
[1733635973839,2.0983,238.11,238.07,2.0986]
[1733635974141,7.36547706,238.1,238.07,2.0986]
[1733635974440,2.0983,238.11,238.07,2.0986]
[1733635974639,7.36604469,238.1,238.07,2.0986]
[1733635974939,2.0983,238.11,238.07,2.0986]
[1733635975140,7.36508429,238.1,238.07,2.0986]
[1733635975347,2.0983,238.11,238.07,2.0986]
[1733635975638,7.36519052,238.1,238.07,2.0986]
[1733635975841,2.0983,238.11,238.07,2.0986]
[1733635976041,7.364922,238.1,238.07,2.0986]
[1733635976232,2.0983,238.11,238.07,2.0986]
[1733635976436,7.36467802,238.1,238.07,2.0986]
[1733635976637,2.0983,238.11,238.07,2.0986]
[1733635976841,7.36338382,238.1,238.07,2.0986]
[1733635977047,2.0983,238.11,238.07,2.0986]
[1733635977338,7.36339056,238.1,238.07,2.0986]
[1733635977537,6.5126011,238.08,237.98,1.3904]
[1733635977741,7.36232718,238.07,238.0,6.5126011]
[1733635977937,7.36154026,238.06,238.0,6.5126011]
[1733635978240,8.4126011,238.08,238.0,6.5126011]
[1733635978538,7.358758,238.07,238.0,6.5126011]
[1733635978740,9.457458,238.06,238.02,2.099]
[1733635978936,2.0987,238.06,238.02,2.099]
[1733635979240,7.35851122,238.05,238.02,2.099]
[1733635979443,7.35851122,238.04,238.02,2.099]
[1733635979636,2.0987,238.06,238.02,2.099]
[1733635979839,2.0987,238.06,238.01,2.0991]
[1733635979840,9.4549946,238.05,238.01,2.0991]
[1733635980036,7.3561946,238.04,238.01,2.0991]
[1733635980341,7.3561946,238.03,238.01,2.0991]
[1733635980541,1.9,238.08,238.01,2.0991]
[1733635980542,2.0989,238.04,238.01,2.0991]
[1733635984939,2.0985,238.08,238.04,2.0988]
[1733635985236,288.6460597,238.26,238.07,6.5126011]
[1733635985441,6.5126011,238.18,238.11,6.5126011]
[1733635985642,9.25512344,238.17,238.11,6.5126011]
[1733635985944,2.0979,238.15,238.09,6.5126011]
[1733635986135,7.35512344,238.14,238.09,6.5126011]
[1733635986342,2.0979,238.15,238.05,1.9]
[1733635986640,2.0979,238.15,238.1,6.5126011]
[1733635987043,2.0979,238.15,238.1,8.6108011]
[1733635987839,2.0979,238.15,238.1,2.0982]
[1733635988037,7.35681859,238.14,238.11,2.0982]
[1733635988245,1.9,238.16,238.1,6.5126011]
[1733635989943,1.9,238.16,238.12,2.0981]
[1733635991548,10.5104011,238.16,238.12,2.0981]
[1733635993152,7.36260889,238.15,238.12,2.0981]
[1733635993351,7.36260889,238.14,238.12,2.0981]
[1733635993546,7.36260889,238.13,238.11,2.0982]
[1733635993746,6.5126011,238.13,237.77,67.01727708]
[1733635993954,1.9,238.16,238.03,2.0989]
[1733635993955,2.0986,238.07,238.03,2.0989]
[1733635994253,8.4126011,238.07,237.99,6.5126011]
[1733635994443,8.4126011,238.07,237.87,5.96452989]
[1733635994444,6.5126011,238.03,237.87,5.96452989]
[1733635994647,2.0991,238.01,237.96,8.6122011]
[1733635994852,1.9,238.01,237.96,6.5126011]
[1733635995552,1.9,238.01,237.97,2.0995]
[1733635995757,1.9,238.02,237.96,6.5126011]
[1733635996550,1.9,238.02,237.98,2.0994]
[1733635997154,10.5117011,238.02,237.96,2.0995]
[1733635998761,8.6118011,238.0,237.94,2.0997]
[1733635999666,2.0995,237.97,237.91,2.0999]
[1733635999866,2.0995,237.97,237.9,8.4126011]
[1733636000065,3.9995,237.97,237.9,6.5126011]
[1733636000661,3.9995,237.97,237.92,52.78336672]
[1733636000963,3.9995,237.97,237.87,2.6309]